fUST/lending_fUST_20250601
["ID","MTS","AMOUNT","RATE_DAILY","PERIOD"]
[363603663,1748782232450,-430.0,0.00016712,2]
[363603664,1748782232460,-430.0,0.00016712,2]
[363603665,1748782232470,-8805.94110772,0.00016712,2]
[363603666,1748782232488,-3591.8121571,0.00016712,2]
[363603667,1748782232501,-96.83732132,0.00016712,2]
[363603668,1748782232510,-163.11210531,0.00016884,2]
[363603669,1748782232521,-487.58305725,0.00016984,2]
[363603670,1748782232531,-500.0,0.00016984,2]
[363603671,1748782232541,-500.0,0.00016984,2]
[363603672,1748782232553,-500.0,0.00016984,2]
[363603673,1748782232563,-500.0,0.00016984,2]
[363603674,1748782232573,-500.0,0.00016984,2]
[363603675,1748782232584,-180.65575596,0.00016984,2]
[363603676,1748782232595,-500.0,0.00016984,2]
[363603677,1748782232604,-500.0,0.00016984,2]
[363603678,1748782232615,-500.0,0.00016984,2]
[363603679,1748782232625,-168.61603096,0.00016984,2]
[363603680,1748782232635,-500.0,0.00016984,2]
[363603681,1748782232646,-500.0,0.00016984,2]
[363603682,1748782232657,-500.0,0.00016984,2]
[363603683,1748782232668,-500.0,0.00016984,2]
[363603684,1748782232678,-500.0,0.00016984,2]
[363603685,1748782232688,-265.22742768,0.00016984,2]
[363603686,1748782232699,-500.0,0.00016984,2]
[363603687,1748782232716,-500.0,0.00016984,2]
[363603688,1748782232726,-500.0,0.00016984,2]
[363603689,1748782232737,-82.0908678,0.00016984,2]
[363603705,1748782238249,-430.0,0.00016711,2]
[363603706,1748782238259,-421.95170786,0.00016984,2]
[363603707,1748782238270,-500.0,0.00016984,2]
[363603708,1748782238280,-500.0,0.00016984,2]
[363603709,1748782238295,-430.0,0.00016985,2]
[363603710,1748782238308,-430.0,0.00016985,2]
[363603711,1748782238322,-430.0,0.00016985,2]
[363603712,1748782238337,-430.0,0.00016985,2]
[363603713,1748782238349,-430.0,0.00016985,2]
[363603714,1748782238362,-430.0,0.00016985,2]
[363603715,1748782238373,-430.0,0.00016985,2]
[363603716,1748782238384,-224.34,0.00016985,2]
[363603717,1748782238395,-165.99033755,0.00016985,2]
[363603718,1748782238407,-430.0,0.00016985,2]
[363603719,1748782238419,-500.0,0.00016985,2]
[363603720,1748782238431,-430.0,0.00016985,2]
[363603721,1748782238442,-430.0,0.00016985,2]
[363603722,1748782238454,-283.88,0.00016985,2]
[363603723,1748782238465,-430.0,0.00016985,2]
[363603724,1748782238477,-502.75,0.00016985,2]
[363603725,1748782238489,-430.0,0.00016985,2]
[363603726,1748782238504,-430.0,0.00016985,2]
[363603727,1748782238516,-430.0,0.00016986,2]
[363603728,1748782238527,-430.0,0.00017259,2]
[363603729,1748782238538,-336.63983854,0.00017259,2]
[363603730,1748782238549,-430.0,0.00017259,2]
[363603731,1748782238560,-430.0,0.00017259,2]
[363603732,1748782238571,-430.0,0.00017259,2]
[363603733,1748782238581,-430.0,0.00017259,2]
[363603734,1748782238591,-430.0,0.00017259,2]
[363603735,1748782238605,-430.0,0.0001726,2]
[363603736,1748782238617,-430.0,0.00017533,2]
[363603737,1748782238629,-228.46576746,0.00017533,2]
[363603738,1748782238640,-243.2,0.00017533,2]
[363603739,1748782238651,-430.0,0.00017533,2]
[363603740,1748782238665,-430.0,0.00017533,2]
[363603741,1748782238678,-430.0,0.00017533,2]
[363603742,1748782238689,-430.0,0.00017534,2]
[363603743,1748782238701,-430.0,0.00017807,2]
[363603744,1748782238712,-430.0,0.00017807,2]
[363603745,1748782238725,-430.0,0.00017807,2]
[363603746,1748782238737,-430.0,0.00017807,2]
[363603747,1748782238749,-430.0,0.00017808,2]
[363603748,1748782238761,-842.5625,0.00018021,2]
[363603749,1748782238772,-160.0,0.00018021,2]
[363603750,1748782238784,-423.51412927,0.00018021,2]
[363603751,1748782238796,-229.3709046,0.00018021,2]
[363603752,1748782238810,-430.0,0.00018081,2]
[363603753,1748782238821,-431.51226882,0.00018081,2]
[363603754,1748782238833,-430.0,0.00018081,2]
[363603755,1748782238846,-430.0,0.00018081,2]
[363603756,1748782238857,-430.0,0.00018355,2]
[363603757,1748782238869,-430.0,0.00018355,2]
[363603758,1748782238882,-430.0,0.00018629,2]
[363603759,1748782238894,-430.0,0.00018629,2]
[363603760,1748782238905,-250.481546,0.000189,2]
[363603761,1748782238915,-430.0,0.00018903,2]
[363603762,1748782238927,-430.0,0.00018903,2]
[363603763,1748782238938,-430.0,0.00019177,2]
[363603764,1748782238950,-283.44,0.00019177,2]
[363603765,1748782238962,-151.0,0.00019178,2]
[363603766,1748782238974,-171.710723,0.00019178,2]
[363603767,1748782238986,-179.76952461,0.00019233,2]
[363603768,1748782238999,-538.32,0.00019451,2]
[363603769,1748782239011,-311.398,0.00019565,2]
[363603770,1748782239022,-178.59002559,0.00019565,2]
[363603771,1748782239033,-193.30573625,0.0002,2]
[363603772,1748782239045,-500.0,0.00020067,2]
[363603773,1748782239055,-392.43309408,0.00021,2]
[363603774,1748782239066,-450.88,0.00021,2]
[363603775,1748782239076,-207.227,0.00021939,2]
[363603776,1748782239087,-2227.0,0.00021939,2]
[363603777,1748782239098,-405.0,0.00021939,2]
[363603778,1748782239108,-151.608,0.00021939,2]
[363603779,1748782239120,-196.585,0.00021939,2]
[363603780,1748782239133,-241.427,0.00021939,2]
[363603781,1748782239147,-15000.0,0.00022,2]
[363603782,1748782239159,-500.0,0.00022259,2]
[363603783,1748782239171,-207.4,0.00022572,2]
[363603784,1748782239181,-3302.31,0.00022638,3]
[363603785,1748782239191,-155.6687316,0.00022767,2]
[363603786,1748782239202,-153.0,0.00022795,2]
[363603787,1748782239212,-364.3782178,0.00022932,2]
[363603788,1748782239222,-364.3782178,0.00022932,2]
[363603789,1748782239234,-363.9794335,0.00022932,2]
[363603790,1748782239247,-250.0,0.00022937,2]
[363603791,1748782239259,-7000.0,0.00022942,3]
[363603792,1748782239270,-423.51412927,0.00023,3]
[363603793,1748782239282,-229.3709046,0.00023,3]
[363603794,1748782239294,-9859.40490574,0.00023411,2]
[363603795,1748782239306,-5000.0,0.00023411,2]
[363603796,1748782239317,-5000.0,0.00023411,2]
[363603797,1748782239328,-5000.0,0.00023411,2]
[363603798,1748782239349,-5000.0,0.00023411,2]
[363603799,1748782239363,-1246.737351,0.00023422,3]
[363603800,1748782239375,-3695.69825899,0.00023562,2]
[363603801,1748782239388,-941.34906538,0.00023652,2]
[363603802,1748782239400,-234.55748039,0.00023699,2]
[363603803,1748782239413,-153.0,0.000237,31]
[363603804,1748782239427,-153.0,0.000237,31]
[363603805,1748782239445,-153.0,0.000237,31]
[363603806,1748782239457,-153.0,0.000237,31]
[363603807,1748782239470,-153.0,0.000237,31]
[363603808,1748782239484,-153.0,0.000237,31]
[363603809,1748782239496,-153.0,0.000237,31]
[363603810,1748782239509,-153.0,0.000237,31]
[363603811,1748782239523,-153.0,0.000237,31]
[363603812,1748782239534,-153.0,0.000237,31]
[363603813,1748782239546,-153.0,0.000237,31]
[363603815,1748782239559,-153.0,0.000237,31]
[363603816,1748782239570,-153.0,0.000237,31]
[363603817,1748782239582,-153.0,0.000237,31]
[363603818,1748782239593,-153.0,0.000237,31]
[363603819,1748782239605,-254.01,0.00023751,10]
[363603820,1748782239617,-1740.08153913,0.00023758,2]
[363603822,1748782239629,-1740.08153913,0.00023761,2]
[363603824,1748782239640,-163.11210531,0.00023761,2]
[363603825,1748782239653,-5000.0,0.00023783,30]
[363603828,1748782239664,-5000.0,0.00023783,30]
[363603830,1748782239676,-5000.0,0.00023783,30]
[363603832,1748782239688,-5000.0,0.00023783,30]
[363603834,1748782239702,-5000.0,0.00023783,30]
[363603836,1748782239715,-5000.0,0.00023783,30]
[363603837,1748782239727,-1019.5,0.00023783,30]
[363603838,1748782239739,-11344.92382377,0.00023788,2]
[363603839,1748782239751,-500.0,0.00023799,2]
[363603840,1748782239763,-500.0,0.00023799,2]
[363603841,1748782239775,-837.46925256,0.00023799,2]
[363603842,1748782239786,-500.0,0.00023799,2]
[363603843,1748782239798,-500.0,0.00023799,2]
[363603844,1748782239809,-837.46925256,0.00023799,2]
[363603846,1748782239820,-552.73303964,0.00023799,2]
[363603847,1748782239832,-500.0,0.00023799,2]
[363603849,1748782239843,-837.46925256,0.00023799,2]
[363603850,1748782239857,-837.46925256,0.00023799,2]
[363603851,1748782239872,-837.46925256,0.00023799,2]
[363603852,1748782239883,-160.29131143,0.00023799,2]
[363603854,1748782239894,-500.0,0.00023799,2]
[363603856,1748782239906,-837.46925256,0.00023799,2]
[363603858,1748782239917,-500.0,0.00023799,2]
[363603859,1748782239928,-837.46925256,0.00023799,2]
[363603860,1748782239940,-837.46925256,0.00023799,2]
[363603861,1748782239951,-837.46925256,0.00023799,2]
[363603862,1748782239963,-837.46925256,0.00023799,2]
[363603863,1748782239976,-837.46925256,0.00023799,2]
[363603864,1748782239988,-837.46925256,0.00023799,2]
[363603865,1748782239999,-837.46925256,0.00023799,2]
[363603867,1748782240010,-837.46925256,0.00023799,2]
[363603869,1748782240021,-500.0,0.00023799,2]
[363603871,1748782240034,-837.46925256,0.00023799,2]
[363603874,1748782240046,-837.46925256,0.00023799,2]
[363603876,1748782240057,-837.46925256,0.00023799,2]
[363603878,1748782240069,-500.0,0.00023799,2]
[363603880,1748782240080,-500.0,0.00023799,2]
[363603882,1748782240091,-837.46925256,0.00023799,2]
[363603903,1748782240287,-837.46925256,0.00023799,2]
[363603905,1748782240298,-837.46925256,0.00023799,2]
[363603907,1748782240308,-837.46925256,0.00023799,2]
[363603909,1748782240318,-2326.44040385,0.00023799,2]
[363603911,1748782240328,-2326.44040385,0.00023799,2]
[363603913,1748782240338,-2326.44040385,0.00023799,2]
[363603915,1748782240347,-2326.44040385,0.00023799,2]
[363603917,1748782240357,-2326.44040385,0.00023799,2]
[363603919,1748782240367,-2326.44040385,0.00023799,2]
[363603921,1748782240381,-2326.44040385,0.00023799,2]
[363603923,1748782240390,-2326.44040385,0.00023799,2]
[363603925,1748782240400,-2696.38800049,0.00023799,2]
[363603927,1748782240411,-451199.1952533,0.000238,2]
[363603933,1748782240482,-3445.96939532,0.000238,2]
[363603937,1748782240514,-2471.7,0.000238,2]
[363604336,1748782245006,-160.0,0.00018021,2]
[363604338,1748782245017,-153.0,0.00022795,2]
[363604340,1748782245027,-8469.1932007,0.000238,2]
[363604490,1748782246377,-1559.91288325,0.000238,2]
[363604497,1748782246434,-302.10002581,0.000238,2]
[363604499,1748782246446,-892.3,0.000238,2]
[363604501,1748782246458,-2360.17573835,0.000238,2]
[363604503,1748782246470,-482.7826615,0.000238,2]
[363604512,1748782246543,-5076.37332164,0.000238,2]
[363604896,1748782250524,354.692899,0.00013699,2]
[363605811,1748782969967,9000.0,0.0002385,120]
[363605813,1748783036086,157.58,0.0001412,2]
[363605816,1748783140145,-1294.15350394,0.0001569,2]
[363605817,1748783140190,-244.1635066,0.00015848,2]
[363605818,1748783140222,-300.0,0.00016708,2]
[363605819,1748783140252,-300.0,0.00016708,2]
[363605820,1748783140282,-300.0,0.00016708,2]
[363605821,1748783140313,-1200.0,0.00016708,2]
[363605822,1748783140345,-500.0,0.00016709,2]
[363605823,1748783140373,-321.93591281,0.00016709,2]
[363605824,1748783140405,-572.47266048,0.00016709,2]
[363605825,1748783140434,-500.0,0.00016709,2]
[363605826,1748783140462,-431.52,0.00016709,2]
[363605827,1748783140491,-475.13,0.00016709,2]
[363605828,1748783140517,-430.0,0.00016709,2]
[363605829,1748783140543,-430.0,0.00016709,2]
[363605830,1748783140572,-715.43,0.00016709,2]
[363605831,1748783140599,-430.0,0.0001671,2]
[363605832,1748783140627,-430.0,0.0001671,2]
[363605833,1748783140653,-358.64970959,0.0001671,2]
[363605834,1748783140681,-382.4442734,0.0001671,2]
[363605836,1748783236086,-163.11210531,0.0001661,2]
[363605837,1748783236109,-300.0,0.00016708,2]
[363605838,1748783236131,-300.0,0.00016709,2]
[363605839,1748783236155,-284.14911004,0.00016709,2]
[363605840,1748783236178,-430.0,0.00016709,2]
[363605841,1748783236202,-109.58034775,0.00016709,2]
[363605842,1748783241093,-438.13965225,0.00016709,2]
[363605843,1748783241116,-430.0,0.00016709,2]
[363605844,1748783241140,-430.0,0.00016709,2]
[363605845,1748783241165,-835.38,0.00016709,2]
[363605846,1748783241187,-430.0,0.00016709,2]
[363605847,1748783241209,-430.0,0.00016709,2]
[363605848,1748783241231,-430.0,0.00016709,2]
[363605849,1748783241256,-430.0,0.00016709,2]
[363605850,1748783241280,-472.93,0.00016709,2]
[363605851,1748783241303,-430.0,0.00016709,2]
[363605852,1748783241327,-430.0,0.00016709,2]
[363605853,1748783241350,-47.5557266,0.0001671,2]
[363605854,1748783241372,-430.0,0.0001671,2]
[363605855,1748783241394,-430.0,0.0001671,2]
[363605856,1748783241416,-61.62943883,0.0001671,2]
[363605858,1748783327504,150.0,0.00024649,120]
[363605861,1748783352112,-430.0,0.00016709,2]
[363605862,1748783352141,-430.0,0.00016709,2]
[363605863,1748783352166,-430.0,0.00016709,2]
[363605864,1748783352191,-430.0,0.00016709,2]
[363605865,1748783352215,-430.0,0.00016709,2]
[363605866,1748783352240,-430.0,0.00016709,2]
[363605867,1748783352265,-430.0,0.00016709,2]
[363605868,1748783352289,-82.70042412,0.00016709,2]
[363605876,1748783366391,336.958254,0.00013699,2]
[363605923,1748783432467,-211.39775466,0.00016209,2]
[363605925,1748783432478,-166.05630988,0.0001661,2]
[363605927,1748783432488,-347.29957588,0.00016709,2]
[363605929,1748783432498,-430.0,0.00016709,2]
[363605931,1748783432508,-430.0,0.00016709,2]
[363605933,1748783432518,-430.0,0.00016709,2]
[363605935,1748783432528,-216.77,0.00016709,2]
[363605937,1748783432539,-430.0,0.00016709,2]
[363605940,1748783432549,-430.0,0.00016709,2]
[363605942,1748783432559,-430.0,0.00016709,2]
[363605944,1748783432569,-796.26,0.00016709,2]
[363605946,1748783432579,-430.0,0.00016709,2]
[363605948,1748783432589,-430.0,0.00016709,2]
[363605950,1748783432599,-467.39,0.00016709,2]
[363605952,1748783432608,-476.58,0.00016709,2]
[363605954,1748783432618,-625.31,0.00016709,2]
[363605956,1748783432627,-1195.64,0.00016709,2]
[363605958,1748783432637,-430.0,0.00016709,2]
[363605960,1748783432647,-430.0,0.00016709,2]
[363605962,1748783432656,-430.0,0.00016709,2]
[363605964,1748783432666,-430.0,0.00016709,2]
[363605966,1748783432675,-430.0,0.00016709,2]
[363605968,1748783432686,-979.9804,0.0001671,2]
[363605970,1748783432696,-368.37056117,0.0001671,2]
[363605972,1748783432706,-430.0,0.0001671,2]
[363605974,1748783432715,-430.0,0.0001671,2]
[363605976,1748783432725,-430.0,0.0001671,2]
[363605978,1748783432735,-430.0,0.0001671,2]
[363605980,1748783432744,-263.77,0.0001671,2]
[363605982,1748783432754,-430.0,0.0001671,2]
[363605984,1748783432763,-430.0,0.0001671,2]
[363605986,1748783432773,-430.0,0.0001671,2]
[363605988,1748783432783,-430.0,0.0001671,2]
[363605990,1748783432793,-470.0,0.0001671,2]
[363605992,1748783432803,-430.0,0.0001671,2]
[363605994,1748783432812,-430.0,0.0001671,2]
[363605996,1748783432822,-430.0,0.0001671,2]
[363605998,1748783432833,-430.0,0.0001671,2]
[363606000,1748783432842,-430.0,0.0001671,2]
[363606002,1748783432853,-430.0,0.0001671,2]
[363606004,1748783432862,-430.0,0.0001671,2]
[363606006,1748783432872,-430.0,0.0001671,2]
[363606008,1748783432882,-430.0,0.0001671,2]
[363606010,1748783432891,-430.0,0.0001671,2]
[363606012,1748783432900,-430.0,0.0001671,2]
[363606014,1748783432910,-430.0,0.0001671,2]
[363606016,1748783432919,-430.0,0.0001671,2]
[363606018,1748783432930,-430.0,0.0001671,2]
[363606020,1748783432940,-430.0,0.0001671,2]
[363606022,1748783432951,-430.0,0.0001671,2]
[363606024,1748783432960,-170.59918432,0.0001671,2]
[363606026,1748783432970,-295.99655748,0.0001671,2]
[363606028,1748783432980,-430.0,0.0001671,2]
[363606030,1748783432989,-430.0,0.0001671,2]
[363606032,1748783432999,-430.0,0.0001671,2]
[363606034,1748783433010,-430.0,0.0001671,2]
[363606036,1748783433020,-854.23,0.0001671,2]
[363606038,1748783433030,-430.0,0.0001671,2]
[363606040,1748783433040,-430.0,0.0001671,2]
[363606042,1748783433051,-430.0,0.0001671,2]
[363606045,1748783433063,-1110.42,0.0001671,2]
[363606047,1748783433076,-430.0,0.0001671,2]
[363606049,1748783433086,-430.0,0.0001671,2]
[363606051,1748783433096,-430.0,0.0001671,2]
[363606053,1748783433106,-430.0,0.0001671,2]
[363606055,1748783433116,-430.0,0.0001671,2]
[363606057,1748783433126,-430.0,0.0001671,2]
[363606059,1748783433137,-430.0,0.0001671,2]
[363606062,1748783433153,-430.0,0.0001671,2]
[363606064,1748783433169,-748.59,0.0001671,2]
[363606066,1748783433180,-430.0,0.0001671,2]
[363606068,1748783433191,-430.0,0.0001671,2]
[363606070,1748783433202,-668.25,0.0001671,2]
[363606072,1748783433212,-430.0,0.0001671,2]
[363606074,1748783433223,-430.0,0.0001671,2]
[363606075,1748783433235,-430.0,0.0001671,2]
[363606076,1748783433245,-430.0,0.0001671,2]
[363606077,1748783433256,-430.0,0.0001671,2]
[363606078,1748783433266,-430.0,0.0001671,2]
[363606079,1748783433276,-430.0,0.0001671,2]
[363606080,1748783433287,-430.0,0.0001671,2]
[363606081,1748783433298,-261.78734512,0.0001671,2]
[363606082,1748783433308,-430.0,0.0001671,2]
[363606083,1748783433319,-430.0,0.0001671,2]
[363606084,1748783433329,-430.0,0.0001671,2]
[363606085,1748783433339,-430.0,0.0001671,2]
[363606086,1748783433350,-430.0,0.0001671,2]
[363606087,1748783433361,-430.0,0.0001671,2]
[363606088,1748783433371,-430.0,0.0001671,2]
[363606089,1748783433381,-430.0,0.0001671,2]
[363606090,1748783433391,-430.0,0.0001671,2]
[363606091,1748783433401,-430.0,0.0001671,2]
[363606092,1748783433411,-430.0,0.0001671,2]
[363606093,1748783433422,-430.0,0.0001671,2]
[363606094,1748783433432,-430.0,0.0001671,2]
[363606095,1748783433442,-430.0,0.0001671,2]
[363606096,1748783433453,-430.0,0.0001671,2]
[363606097,1748783433463,-430.0,0.0001671,2]
[363606100,1748783433474,-430.0,0.00016711,2]
[363606102,1748783433484,-430.0,0.00016711,2]
[363606104,1748783433495,-430.0,0.00016711,2]
[363606106,1748783433505,-430.0,0.00016711,2]
[363606108,1748783433515,-430.0,0.00016711,2]
[363606110,1748783433525,-430.0,0.00016711,2]
[363606112,1748783433534,-430.0,0.00016711,2]
[363606114,1748783433544,-430.0,0.00016711,2]
[363606116,1748783433555,-541.22,0.00016711,2]
[363606118,1748783433564,-430.0,0.00016711,2]
[363606120,1748783433575,-579.41965538,0.00016711,2]
[363606122,1748783433585,-430.0,0.00016711,2]
[363606124,1748783433595,-430.0,0.00016711,2]
[363606126,1748783433605,-430.0,0.00016711,2]
[363606128,1748783433615,-648.12990191,0.00016856,2]
[363606130,1748783433626,-430.0,0.00016983,2]
[363606132,1748783433635,-472.93,0.00016983,2]
[363606134,1748783433646,-430.0,0.00016983,2]
[363606136,1748783433655,-430.0,0.00016983,2]
[363606138,1748783433666,-229.88,0.00016983,2]
[363606140,1748783433676,-430.0,0.00016983,2]
[363606142,1748783433687,-537.36,0.00016983,2]
[363606144,1748783433697,-430.0,0.00016983,2]
[363606146,1748783433707,-181.27,0.00016983,2]
[363606148,1748783433717,-430.0,0.00016983,2]
[363606150,1748783433727,-430.0,0.00016983,2]
[363606152,1748783433737,-204.0,0.00016983,2]
[363606154,1748783433749,-458.2,0.00016983,2]
[363606156,1748783433759,-430.0,0.00016983,2]
[363606158,1748783433769,-430.0,0.00016983,2]
[363606160,1748783433779,-796.26,0.00016983,2]
[363606162,1748783433789,-162.29,0.00016983,2]
[363606164,1748783433798,-467.39,0.00016983,2]
[363606166,1748783433808,-625.31,0.00016983,2]
[363606168,1748783433818,-1195.64,0.00016983,2]
[363606170,1748783433828,-430.0,0.00016983,2]
[363606172,1748783433838,-514.34,0.00016983,2]
[363606174,1748783433848,-430.0,0.00016983,2]
[363606176,1748783433859,-430.0,0.00016983,2]
[363606178,1748783433869,-430.0,0.00016984,2]
[363606180,1748783433878,-430.0,0.00016984,2]
[363606182,1748783433888,-430.0,0.00016984,2]
[363606184,1748783433898,-554.05298708,0.00016984,2]
[363606187,1748783433908,-430.0,0.00016984,2]
[363606189,1748783433918,-430.0,0.00016984,2]
[363606191,1748783433928,-430.0,0.00016984,2]
[363606193,1748783433938,-430.0,0.00016984,2]
[363606195,1748783433948,-430.0,0.00016984,2]
[363606197,1748783433959,-430.0,0.00016984,2]
[363606199,1748783433968,-214.12,0.00016984,2]
[363606201,1748783433979,-430.0,0.00016984,2]
[363606203,1748783433989,-430.0,0.00016984,2]
[363606205,1748783434001,-430.0,0.00016984,2]
[363606207,1748783434011,-430.0,0.00016984,2]
[363606209,1748783434023,-430.0,0.00016984,2]
[363606211,1748783434035,-854.23,0.00016984,2]
[363606213,1748783434044,-430.0,0.00016984,2]
[363606215,1748783434055,-430.0,0.00016984,2]
[363606217,1748783434066,-1110.42,0.00016984,2]
[363606219,1748783434078,-430.0,0.00016984,2]
[363606221,1748783434089,-430.0,0.00016984,2]
[363606223,1748783434099,-430.0,0.00016984,2]
[363606226,1748783434111,-476.88,0.00016984,2]
[363606228,1748783434122,-430.0,0.00016984,2]
[363606230,1748783434133,-430.0,0.00016984,2]
[363606232,1748783434144,-430.0,0.00016984,2]
[363606234,1748783434156,-430.0,0.00016984,2]
[363606236,1748783434166,-748.59,0.00016984,2]
[363606238,1748783434176,-468.65,0.00016984,2]
[363606240,1748783434186,-430.0,0.00016984,2]
[363606242,1748783434196,-668.25,0.00016984,2]
[363606244,1748783434206,-430.0,0.00016984,2]
[363606246,1748783434215,-430.0,0.00016984,2]
[363606248,1748783434226,-430.0,0.00016984,2]
[363606250,1748783434236,-441.23,0.00016984,2]
[363606252,1748783434247,-430.0,0.00016984,2]
[363606254,1748783434258,-430.0,0.00016984,2]
[363606256,1748783434268,-430.0,0.00016984,2]
[363606258,1748783434279,-508.36,0.00016984,2]
[363606260,1748783434288,-430.0,0.00016984,2]
[363606262,1748783434298,-430.0,0.00016984,2]
[363606264,1748783434308,-430.0,0.00016984,2]
[363606266,1748783434318,-430.0,0.00016984,2]
[363606268,1748783434328,-430.0,0.00016984,2]
[363606270,1748783434338,-430.0,0.00016984,2]
[363606272,1748783434348,-430.0,0.00016984,2]
[363606274,1748783434358,-439.60557889,0.00016984,2]
[363606276,1748783434368,-430.0,0.00016984,2]
[363606278,1748783434379,-430.0,0.00016984,2]
[363606280,1748783434388,-430.0,0.00016984,2]
[363606282,1748783434398,-430.0,0.00016984,2]
[363606284,1748783434408,-430.0,0.00016984,2]
[363606286,1748783434418,-430.0,0.00016985,2]
[363606289,1748783434429,-430.0,0.00016985,2]
[363606291,1748783434439,-430.0,0.00016985,2]
[363606293,1748783434449,-430.0,0.00016985,2]
[363606295,1748783434460,-430.0,0.00016985,2]
[363606297,1748783434470,-430.0,0.00016985,2]
[363606299,1748783434481,-245.1,0.00016985,2]
[363606301,1748783434491,-430.0,0.00016985,2]
[363606303,1748783434501,-430.0,0.00016985,2]
[363606305,1748783434511,-430.0,0.00017257,2]
[363606307,1748783434520,-472.93,0.00017257,2]
[363606309,1748783434530,-430.0,0.00017257,2]
[363606311,1748783434540,-430.0,0.00017257,2]
[363606313,1748783434550,-430.0,0.00017257,2]
[363606315,1748783434559,-430.0,0.00017257,2]
[363606317,1748783434568,-342.54,0.00017257,2]
[363606318,1748783434578,-430.0,0.00017257,2]
[363606319,1748783434587,-430.0,0.00017257,2]
[363606320,1748783434596,-796.26,0.00017257,2]
[363606321,1748783434605,-467.39,0.00017257,2]
[363606322,1748783434615,-625.31,0.00017257,2]
[363606323,1748783434624,-1195.64,0.00017257,2]
[363606324,1748783434634,-430.0,0.00017257,2]
[363606325,1748783434643,-344.66,0.00017257,2]
[363606326,1748783434654,-430.0,0.00017257,2]
[363606327,1748783434663,-430.0,0.00017258,2]
[363606328,1748783434673,-211.72,0.00017258,2]
[363606329,1748783434682,-489.94,0.00017258,2]
[363606330,1748783434692,-854.23,0.00017258,2]
[363606331,1748783434701,-215.5,0.00017258,2]
[363606332,1748783434711,-160.18,0.00017258,2]
[363606333,1748783434720,-1110.42,0.00017258,2]
[363606334,1748783434730,-427.1,0.00017258,2]
[363606335,1748783434867,-430.0,0.00017258,2]
[363606336,1748783434880,-748.59,0.00017258,2]
[363606337,1748783434888,-430.0,0.00017258,2]
[363606338,1748783434896,-668.25,0.00017258,2]
[363606339,1748783434905,-481.56,0.00017258,2]
[363606340,1748783434912,-430.0,0.00017258,2]
[363606341,1748783434920,-389.3,0.00017258,2]
[363606342,1748783434929,-156.79,0.00017258,2]
[363606343,1748783434937,-430.0,0.00017258,2]
[363606344,1748783434945,-430.0,0.00017258,2]
[363606345,1748783434953,-490.07,0.00017258,2]
[363606346,1748783434962,-430.0,0.00017258,2]
[363606347,1748783434971,-430.0,0.00017258,2]
[363606348,1748783434982,-430.0,0.00017258,2]
[363606349,1748783434990,-430.0,0.00017259,2]
[363606350,1748783434999,-430.0,0.00017531,2]
[363606351,1748783435008,-472.93,0.00017531,2]
[363606352,1748783435016,-430.0,0.00017531,2]